Cogmind - Beta 14 @@@ ROGUE MODE // 2024.08.21 @ 15:19:59 Player: jimmyl Result: Destroyed by G-34 Mercenary with Small Laser Performance ------------- Evolutions (0) 0 Regions Visited (1) 200 Robots Destroyed (25) 125 Value Destroyed (534) 534 Prototype IDs (0) 0 Alien Tech Used (0) 0 Bonus (0) 0 TOTAL SCORE: 859 Bonus ------- None Cogmind --------- Core Integrity 0/250 Matter 299/300 Energy 32/100 System Corruption 0% Temperature Hot (252) Movement Core (1400) Ox27 Location -10/Materials Parts ------- > --- POWER (1) -------- (None) > --- PROPULSION (2) --- (None) > --- UTILITY (2) ------ Huge Storage Unit > --- WEAPON (2) ------- Small Laser Small Laser > --- INVENTORY (25) --- Light Ion Engine Light Treads Light Treads Compact Wheel Heat Sink Structural Scanner Terrain Scanner Light Assault Rifle Peak State ------------ > --- POWER ------------ Light Ion Engine > --- PROPULSION ------- Light Treads Wheel > --- UTILITY ---------- Heat Sink Huge Storage Unit > --- WEAPON ----------- Small Laser Small Laser > --- INVENTORY -------- Light Ion Engine Light Treads Light Treads Compact Wheel Heat Sink Terrain Scanner Light Armor Plating Small Laser Small Laser Light Assault Rifle [Rating: 8] Favorites ----------- Power Ion Engine Engine Ion Engine Propulsion Light Treads Treads Light Treads Leg Aluminum Leg Wheel Wheel Utility Heat Sink Device Heat Sink Storage Huge Storage Unit Protection Utility Shielding Weapon EM Pulse Gun Energy Gun EM Pulse Gun Build | -11 -10 ------- Run | Yrd Mat Slots Evolved . | . . Power . | . . Propulsion . | . . Utility . | . . Weapon . | . . Parts Attached 13 | . 13 Power 1 | . 1 Engine 1 | . 1 Core . | . . Reactor . | . . Propulsion 3 | . 3 Treads 2 | . 2 Leg . | . . Wheel 1 | . 1 Hover . | . . Flight . | . . Utility 4 | . 4 Device 1 | . 1 Storage 1 | . 1 Processor . | . . Hackware . | . . Protection 2 | . 2 Artifact . | . . Weapon 5 | . 5 Energy Gun 5 | . 5 Energy Cannon . | . . Ballistic Gun . | . . Ballistic Cannon . | . . Launcher . | . . Special Weapon . | . . Impact Weapon . | . . Slashing Weapon . | . . Piercing Weapon . | . . Special Melee Weapon . | . . Unidentified Prototypes . | . . Parts Lost 10 | . 10 Power 2 | . 2 Propulsion 2 | . 2 Utility 2 | . 2 Weapon 4 | . 4 Highest Loss Streak 7 | . 7 To Critical Strikes . | . . Average Slot Usage (%) 96 | . 96 Engine 12 | . 12 Treads 15 | . 15 Leg 3 | . 3 Wheel 8 | . 8 Device 11 | . 11 Storage 14 | . 14 Protection 1 | . 1 Energy Gun 27 | . 27 Peak Build Rating 8 | 6 8 Average Rating 7 | 6 7 On Entrance 6 | 6 6 Naked Turns . | . . Heaviest Build 90 | 14 90 Greatest Support 40 | 20 40 Greatest Overweight (x) 8 | . 8 Average Overweight (x) 4 | . 4 Largest Inventory Capacity 25 | 8 25 Average Capacity 21 | 8 21 Most Carried 11 | 6 11 Average Carried 7 | 6 7 Final Capacity 25 | 8 25 Final Carried 8 | 6 8 Class Distribution -------------------- 100% | Mutant Dominant Class ---------------- Mutant | -10/Materials Resources | -11 -10 ----------- Run | Yrd Mat Matter Collected 319 | 200 119 Remotely . | . . Salvage Created 724 | . 724 Parts 65 | . 65 Haulers Intercepted . | . . Recyclers Shooed . | . . Parts Field Recycled . | . . Retrieved Matter . | . . Parts Self-Destructed . | . . Prevented . | . . Kills | -11 -10 ------- Run | Yrd Mat Combat Hostiles Destroyed 16 | . 16 Guns 15 | . 15 AOE 1 | . 1 Classes Destroyed 6 | . 6 Worker 3 | . 3 Builder 2 | . 2 Operator 1 | . 1 Watcher 3 | . 3 Swarmer 5 | . 5 Grunt 11 | . 11 Best Kill Streak 5 | . 5 Combat Bots Only 4 | . 4 Max Kills in Single Turn 2 | . 2 Gunslinging . | . . Exploded 1 | . 1 Melee . | . . Uniques/NPCs Destroyed . | . . Combat | -11 -10 -------- Run | Yrd Mat Hostile Shots Fired 150 | . 150 Missed 49 | . 49 Damage Taken 1133 | . 1133 Core 256 | . 256 Absorbed by Shields . | . . Core Remaining (%) 100 | 100 . Volleys Fired 73 | . 73 Largest 2 | . 2 Hottest 80 | . 80 Shots Fired 141 | . 141 Gun 141 | . 141 Cannon . | . . Launcher . | . . Special . | . . Kinetic . | . . Thermal 72 | . 72 Explosive . | . . Electromagnetic 69 | . 69 Robot Hit Streak 10 | . 10 Robot Miss Streak 3 | . 3 Penetration Max . | . . Secondary Targets 3 | . 3 Max Gunslinging Chain 1 | . 1 Shots Hit Robots 86 | . 86 Core Hits 38 | . 38 Critical Kills . | . . Critical Parts Destroyed . | . . Critical Strikes 1 | . 1 Corrupt 1 | . 1 Melee Attacks . | . . Impact . | . . Slashing . | . . Piercing . | . . Sneak Attacks . | . . Combat Hostiles . | . . Follow-up Attacks . | . . Damage Inflicted 1358 | . 1358 Guns 1181 | . 1181 Cannons . | . . Explosions 177 | . 177 Melee . | . . Ramming . | . . Kinetic . | . . Thermal 800 | . 800 Explosive . | . . Electromagnetic 558 | . 558 Impact . | . . Slashing . | . . Piercing . | . . Highest Corruption . | . . Average Corruption . | . . Corruption Purged . | . . Corruption Blocked . | . . Overload Shots . | . . Overflow Damage . | . . Projectiles . | . . Explosions . | . . Melee . | . . Knockbacks . | . . Impact . | . . Kinetic . | . . Secondary . | . . Self-Inflicted Damage 61 | . 61 Shots 2 | . 2 Rammed . | . . Targets Rammed . | . . Kicked . | . . Crushed . | . . Highest Temperature 246 | . 246 Average Temperature 83 | . 83 Received Heat Transfer 531 | . 531 Siege Activations . | . . Robots Corrupted . | . . Combat Hostiles . | . . Parts Fried 1 | . 1 Impact Corruptions . | . . Robots Melted . | . . Combat Hostiles . | . . Parts Melted 3 | . 3 Heat Transferred 1575 | . 1575 Parts Sabotaged . | . . Parts Stolen . | . . Parts Stripped . | . . Power Chain Reactions 3 | . 3 Alert | -11 -10 ------- Run | Yrd Mat Peak Influence 274 | . 274 Initial . | . . Average 111 | . 111 Maximum Alert Level 1 | . 1 Low Security (%) 97 | 100 97 Level 1 2 | . 2 Level 2 . | . . Level 3 . | . . Level 4 . | . . Level 5 . | . . High Security . | . . Max Security . | . . Squads Dispatched 5 | . 5 Investigation 4 | . 4 Extermination . | . . Reinforcement 1 | . 1 Assault . | . . Garrison . | . . Intercept . | . . Searches Triggered . | . . Construction Impeded . | . . Haulers Reinforced . | . . Active Scanning Responses . | . . Cargo Convoy Interrupts . | . . Stealth | -11 -10 --------- Run | Yrd Mat Distress Signals 3 | . 3 Communications Jammed . | . . Distress Signals . | . . Times Spotted 28 | . 28 Peak Tracking Total 5 | . 5 Tactical Retreats . | . . Traps | -11 -10 ------- Run | Yrd Mat Traps Triggered 2 | . 2 Indirectly . | . . Trap Hack Attempts . | . . Triggered . | . . Disarmed . | . . Reprogrammed . | . . Reused . | . . Traps Extracted . | . . Installed . | . . Triggered . | . . Machines | -11 -10 ---------- Run | Yrd Mat Machines Disabled 2 | . 2 Max in Single Turn 1 | . 1 Machines Repaired . | . . Machines Dismantled . | . . Machines Sabotaged . | . . Overloaded Fab Kills . | . . Hacking | -11 -10 --------- Run | Yrd Mat Machines Accessed 4 | . 4 Terminals 4 | . 4 Fabricators . | . . Repair Stations . | . . Recycling Units . | . . Scanalyzers . | . . Garrison Access . | . . Total Hacks 12 | . 12 Successful 4 | . 4 Failed 7 | . 7 Catastrophic 1 | . 1 Database Lockouts 1 | . 1 Manual 5 | . 5 Terminals 12 | . 12 Fabricators . | . . Repair Stations . | . . Recycling Units . | . . Scanalyzers . | . . Garrison Access . | . . Terminal Hacks 4 | . 4 Robot Analysis 3 | . 3 Emergency Access Points 1 | . 1 Fabricator Hacks . | . . Repair Station Hacks . | . . Recycling Unit Hacks . | . . Scanalyzer . | . . Garrison Access Hacks . | . . Unauthorized Hacks . | . . Terminals . | . . Fabricators . | . . Repair Stations . | . . Recycling Units . | . . Scanalyzers . | . . Garrison Access . | . . Data Cores Recovered . | . . Used . | . . Hacking Detections 3 | . 3 Full Trace Events 1 | . 1 Feedback Events . | . . Feedback Blocked . | . . Robot Schematics Acquired . | . . Robots Built . | . . Authchips . | . . Time . | . . Total Robot Build Rating . | . . Part Schematics Acquired . | . . Parts Built . | . . Authchips . | . . Time . | . . Total Part Build Rating . | . . Parts Repaired . | . . Time . | . . Parts Recycled . | . . Recycled Matter . | . . Retrieved Matter . | . . Retrieved Components . | . . Parts Scanalyzed . | . . Part Schematics Acquired . | . . Parts Damaged . | . . Bothacking | -11 -10 ------------ Run | Yrd Mat Used RIF Installer . | . . Robots Hacked . | . . Non-combat . | . . Combat . | . . Robot Hacks Applied . | . . Relay Couplers Released . | . . Fabnet Peak Effective % . | . . Robots Rewired . | . . Allies Hacked . | . . Hacks Repelled . | . . Allies | -11 -10 -------- Run | Yrd Mat Total Allies . | . . Largest Group . | . . Highest-Rated Group . | . . Highest-Rated Ally . | . . Total Orders . | . . Ally Attacks . | . . Total Damage . | . . Kills . | . . Allies Corrupted . | . . Allies Melted . | . . Intel | -11 -10 ------- Run | Yrd Mat Robot Analysis Total 3 | . 3 Derelict Logs Recovered . | . . Drone Launches . | . . Drone Recoveries . | . . Exploration | -11 -10 ------------- Run | Yrd Mat Turns Passed 961 | 3 958 Spaces Moved 361 | 3 358 Core . | . . Treads 97 | . 97 Legs 66 | 3 63 Wheels 198 | . 198 Hover . | . . Flight . | . . Fastest Speed 120 | 120 120 Average Speed 195 | 120 195 Slowest Speed 320 | 120 320 Overloaded Moves . | . . Propulsion Burnouts . | . . Robots Hopped . | . . Cave-ins Triggered . | . . Exploration Rate (%) 40 | 1 80 Regions Visited 1 Branch Regions . Pre-discovered Areas . | . . Known Exits Taken . | . . Unknown Exits Taken 1 | 1 . Scrap Searched . | . . Spaces Dug . | . . Terrain Destroyed 10 | . 10 Melee . | . . Projectile . | . . AOE 10 | . 10 Terrain Rammed . | . . Walls Destroyed . | . . Machines Disabled . | . . Actions | -11 -10 --------- Run | Yrd Mat Total 480 | 2 478 Wait 16 | . 16 Move 360 | 2 358 Hop . | . . Pick Up 11 | . 11 Fast Attach 3 | . 3 Attach 9 | . 9 Detach 1 | . 1 Swap 1 | . 1 Drop 6 | . 6 Fire 73 | . 73 Melee . | . . Ram . | . . Kick . | . . Crush . | . . Escape Stasis . | . . Rewire . | . . Trap . | . . Miscellaneous . | . . Route ------- -11/Scrapyard -10/Materials (discovered 3 exits: [*Mat] / [*Min x2]) History --------- Turn | Location | Event 1 | -11/Scrapyard | Discovered new exit (range 0) 4 | -11/Scrapyard | Entered Materials 56 | -10/Materials | Discovered new exit (range 6) 161 | -10/Materials | Discovered new exit (range 16) 302 | -10/Materials | Build established: Mutant 744 | -10/Materials | Central database locked down 848 | -10/Materials | Discovered new exit (range 16) 915 | -10/Materials | Core integrity fell below 50% 935 | -10/Materials | Core integrity fell below 20% 962 | -10/Materials | Destroyed by G-34 Mercenary with Small Laser Last Messages --------------- investigation squad. 00914_ Lgt. Ion Engine destroyed. 00915_ Ion Engine melted. 00915_ G-34 Mercenary destroyed. 00918_ Heat Sink destroyed. 00925_ U-05 Engineer lays Concrete. 00929_ Lgt. Treads destroyed. 00930_ U-05 Engineer destroyed. 00933_ Aluminum Leg melted. 00933_ Sml. Laser melted. 00933_ G-34 Mercenary destroyed. 00933_ Switching to secondary target: G-34 Mercenary. 00938_ Sml. Laser destroyed. 00940_ Wheel destroyed. 00942_ Acquired 10 matter. 00949_ G-34 Mercenary destroyed. 00950_ Sml. Laser destroyed. 00955_ Acquired 4 matter. 00958_ Lgt. Armor Plating destroyed. Map ----- +----------------------------------------------------+ | ??????????????????????????# ^ | | ??????????????????????????# " " | | ??????????????????????????#^ ##### | | ??????????????????????????########### | | ?????????????????????????????????#""" | | ???????????????????###############" | | ?????????########??# # #"! | | ?????????# #??# [[!# #"" | | ?????????# #??# ! !# """ #"| | | ?????????# #??# !!# """ #" | | ########## #??# [ # """ #""" | | ? # #??#! # #### | | ? """ ""# ########+####+####### | | # """ Y"#+##+####T### | | # """ ""# | | # + | | # """ # """ """ ####+####### | | # """ ### g """ """ # ### | | # """ #?# """ """ # ### | | # #?# # #?# | | ############ ! # ### | | # # g #### #######+### | | # """ # #??# | | # R" # =! #?#T | | # """=+%%!###+####?## | | # # @# ????# ####### | | # """ # [# """ + #?????## | | # """ !!!# # """ #### #??????? | | # """ !! # # """ #??# #?????? | | # !! # # """ #??# #?????"" | | ########## *=# #??# #?????"" | | ?????????# !%########??# #???? | | ?????????#=[%#?????????# #?????? | | ?????????#!<%#?????????# #??????? | | ?????????# ????????? ??????? | | ?????????###T#?????????### ??????? | | ????????????##???????????? ??????? | | ??????????????????????????##????????? | | ????????????????????????????????????? | | ????????????????????????????????????? | | ????????????????????????????????????? | | ????????????????????????????????????? | | ????????????????????????????????????? | | ????????????????????????????????????? | | ????????????????????????????????????? | | | | | | | | | | | +----------------------------------------------------+ Best States ------------- Heat Dissipation 35 Energy Generation 10 Energy Capacity 250 Matter Stores 300 Matter Capacity 300 Sight Range 16 Terrain Scan Density 10 Armor Coverage 150 Utility Shielding 33 Evasion (%) 50 Recoil Reduction 2 Item Schematics ----------------- None Robot Schematics ------------------ None Fabricated ------------ Nothing Alien Tech Used ----------------- None Achievements -------------- None Challenges ------------ None Game ------ Seed GuidanceMasterObliterator Manual? 0 Play Time 00:12:10 Cumulative 102.7 hours Start 2024.08.21 @ 15:12:57 End 2024.08.21 @ 15:19:59 Sessions 1 Manual Loads 0 Difficulty Rogue Special Mode None Game No. 177 Rogue 176 Adventurer 1 Explorer 0 Win Type - Total 0 Types 0/0/0/0/0/0/0/0/0 Lore% 59 Gallery% 63 Achievement% 48 Wizard Run 0 Options --------- Layout 1 ASCII 0 Keyboard 0 Movement Mouse Keybinds 0 Fullscreen 2 Font 20/SmallcapsGlow Map View 54x42 Zoom Use 0% Tactical HUD 1 Map Filters NONE Filters NONE Steam 0 RUN: f21de5a9-fd02-4f79-b6d5-7bbf40c9d4bb